fUST/lending_fUST_20250720
["ID","MTS","AMOUNT","RATE_DAILY","PERIOD"]
[373433448,1753007441695,-151.0,0.00021524,2]
[373433449,1753007441704,-151.0,0.00021524,2]
[373433450,1753007441714,-151.0,0.00021524,2]
[373433451,1753007441723,-151.0,0.00021524,2]
[373433452,1753007441732,-151.0,0.00021524,2]
[373433453,1753007441741,-151.0,0.00021524,2]
[373433454,1753007441751,-151.0,0.00021524,2]
[373433455,1753007441761,-151.0,0.00021524,2]
[373433456,1753007441770,-25000.0,0.00021524,2]
[373433457,1753007441780,-12016.94445921,0.00021524,2]
[373433458,1753007441790,-151.0,0.00021524,2]
[373433459,1753007441799,-151.0,0.00021524,2]
[373433460,1753007441809,-151.0,0.00021524,2]
[373433461,1753007441820,-151.0,0.00021524,2]
[373433462,1753007441830,-151.0,0.00021524,2]
[373433463,1753007441839,-151.0,0.00021524,2]
[373433464,1753007441848,-152.95453,0.00021524,2]
[373433465,1753007441858,-152.95453,0.00021524,2]
[373433466,1753007441868,-609.66,0.00021555,2]
[373433467,1753007441877,-485.07581177,0.00021555,5]
[373433468,1753007441892,-4934.89515568,0.00021555,5]
[373433469,1753007441902,-219.401747,0.00021577,8]
[373433470,1753007441912,-612.65,0.00021617,2]
[373433471,1753007441922,-562.04,0.00021617,2]
[373433472,1753007441931,-1071.89,0.00021619,2]
[373433473,1753007441940,-881.33378065,0.00021619,2]
[373433474,1753007441952,-2950.89403965,0.00021619,2]
[373433475,1753007441964,-287.70733921,0.00021619,2]
[373433476,1753007441977,-315.09484049,0.00021619,2]
[373433477,1753007441988,-186.47086564,0.00021619,2]
[373433478,1753007442000,-287.84913436,0.00021619,2]
[373433479,1753007442009,-479.68485614,0.0002162,2]
[373433480,1753007442020,-111.31514386,0.0002162,2]
[373433481,1753007442030,-502.68,0.0002162,2]
[373433482,1753007442040,-86.51845601,0.0002162,2]
[373433483,1753007442153,-500.0,0.0002025,2]
[373433484,1753007442163,-500.0,0.00020524,2]
[373433485,1753007442172,-500.0,0.00020798,2]
[373433486,1753007442181,-500.0,0.00021072,2]
[373433487,1753007442191,-500.0,0.00021346,2]
[373433488,1753007442202,-500.0,0.0002162,2]
[373433489,1753007442211,-824.50154399,0.0002162,2]
[373433490,1753007442222,-1419.48,0.0002162,2]
[373433491,1753007442231,-151.0,0.00021621,2]
[373433492,1753007442240,-151.0,0.00021621,2]
[373433493,1753007442250,-338.60837779,0.00021779,2]
[373433494,1753007442260,-1455.61673449,0.00021797,6]
[373433495,1753007442273,-3964.35423296,0.00021797,6]
[373433496,1753007442287,-609.66,0.00021829,2]
[373433497,1753007442296,-1000.0,0.00021868,2]
[373433498,1753007442305,-1003.69047879,0.00021868,2]
[373433499,1753007442315,-1500.0,0.00021868,2]
[373433500,1753007442324,-612.65,0.00021891,2]
[373433501,1753007442333,-562.04,0.00021891,2]
[373433502,1753007442345,-1071.89,0.00021893,2]
[373433503,1753007442356,-4435.03,0.00021893,2]
[373433505,1753007442366,-474.32,0.00021893,2]
[373433506,1753007442375,-591.0,0.00021894,2]
[373433507,1753007442385,-500.0,0.00021894,2]
[373433508,1753007442395,-151.0,0.00021894,2]
[373433509,1753007442405,-502.68,0.00021894,2]
[373433510,1753007442415,-200.008202,0.00021894,2]
[373433511,1753007442429,-200.008202,0.00021894,2]
[373433512,1753007442438,-911.02,0.00021894,2]
[373433513,1753007442448,-1419.48,0.00021894,2]
[373433514,1753007442457,-249.338563,0.00021896,2]
[373433515,1753007442466,-239.836,0.00021896,2]
[373433516,1753007442475,-249.338563,0.00021896,2]
[373433517,1753007442484,-638.483131,0.00021896,2]
[373433518,1753007442494,-638.483131,0.00021896,2]
[373433519,1753007442503,-660.0,0.00021904,2]
[373433520,1753007442512,-5713.15083117,0.00021916,2]
[373433522,1753007442523,-6517.52909623,0.00021916,2]
[373433525,1753007442542,-304.2614001,0.00021916,2]
[373433527,1753007442553,-770.67,0.00021916,2]
[373433528,1753007442564,-3072.59983121,0.00021916,2]
[373433530,1753007442575,-715.6763441,0.00021916,2]
[373433533,1753007442586,-20059.75693198,0.00021916,2]
[373433535,1753007442596,-500.0,0.00021917,2]
[373433537,1753007442605,-500.0,0.00021917,2]
[373433538,1753007442614,-500.0,0.00021917,2]
[373433539,1753007442624,-500.0,0.00021917,2]
[373433540,1753007442633,-500.0,0.00021917,2]
[373433541,1753007442642,-151.0,0.00021917,2]
[373433542,1753007442651,-151.0,0.00021917,2]
[373433543,1753007442660,-141.39689657,0.00021918,2]
[373433553,1753007443061,-310.12255931,0.00018503,2]
[373433555,1753007443071,-500.0,0.00019152,2]
[373433557,1753007443080,-324.57866762,0.00019152,2]
[373433596,1753007446206,-175.42133238,0.00019152,2]
[373433597,1753007446216,-500.0,0.00019152,2]
[373433599,1753007446225,-191.85099921,0.00019152,2]
[373433601,1753007446234,-500.0,0.00019152,2]
[373433602,1753007446244,-500.0,0.00019152,2]
[373433604,1753007446253,-500.0,0.00019152,2]
[373433605,1753007446263,-209.00753925,0.00019152,2]
[373433607,1753007446272,-500.0,0.00019152,2]
[373433609,1753007446284,-500.0,0.00019152,2]
[373433610,1753007446293,-500.0,0.00019152,2]
[373433612,1753007446303,-500.0,0.00019152,2]
[373433614,1753007446314,-115.5619449,0.00019152,2]
[373433615,1753007446326,-384.4380551,0.00019152,2]
[373433617,1753007446335,-500.0,0.00019152,2]
[373433619,1753007446346,-192.31033205,0.00019152,2]
[373433621,1753007446359,-307.68966795,0.00019152,2]
[373433622,1753007446368,-500.0,0.00019152,2]
[373433624,1753007446378,-500.0,0.00019152,2]
[373433627,1753007446387,-401.84956324,0.00019152,2]
[373433628,1753007446396,-500.0,0.00019152,2]
[373433630,1753007446405,-500.0,0.00019152,2]
[373433632,1753007446416,-500.0,0.00019152,2]
[373433634,1753007446432,-500.0,0.00019152,2]
[373433636,1753007446447,-500.0,0.00019152,2]
[373433637,1753007446456,-500.0,0.00019152,2]
[373433639,1753007446466,-303.83628223,0.00019152,2]
[373433775,1753007821502,163.646828,0.00013699,2]
[373433777,1753008076395,24210.09154473,0.00017783,7]
[373433786,1753008394130,-183.97357296,0.00016919,2]
[373433787,1753008401930,1000.0,0.00023,30]
[373433818,1753008632268,-2938.58988794,0.00016919,2]
[373433820,1753008632277,-300.0,0.00017682,2]
[373433822,1753008632286,-460.0,0.00017683,2]
[373433824,1753008632295,-460.0,0.00017683,2]
[373433826,1753008632304,-763.53356266,0.00017683,2]
[373433828,1753008632313,-461.32,0.00017683,2]
[373433830,1753008632322,-460.0,0.00017683,2]
[373433832,1753008632331,-283.29263174,0.00017683,2]
[373433834,1753008632342,-174.31536871,0.00017683,2]
[373433836,1753008632351,-115726.97011047,0.00017684,2]
[373433838,1753008632360,-740.96,0.00017771,3]
[373433840,1753008632370,-246.97,0.00017773,3]
[373433841,1753008632379,-493.94,0.00017774,3]
[373433843,1753008632388,-460.0,0.00017781,2]
[373433845,1753008632397,-460.0,0.00017781,2]
[373433847,1753008632406,-386.05344435,0.00017781,2]
[373433849,1753008632415,-500.0,0.00017781,2]
[373433851,1753008632425,-544.64995147,0.00017781,2]
[373433853,1753008632434,-807.59,0.00017781,2]
[373433855,1753008632443,-460.0,0.00017781,2]
[373433857,1753008632453,-460.0,0.00017781,2]
[373433858,1753008632462,-569.86,0.00017781,2]
[373433859,1753008632471,-460.0,0.00017781,2]
[373433860,1753008632481,-460.0,0.00017781,2]
[373433861,1753008632490,-460.0,0.00017781,2]
[373433863,1753008632499,-460.0,0.00017781,2]
[373433865,1753008632508,-460.0,0.00017781,2]
[373433867,1753008632517,-49149.1289467,0.00017781,2]
[373433869,1753008632527,-460.0,0.00017782,2]
[373433871,1753008632535,-460.0,0.00017782,2]
[373433873,1753008632544,-460.0,0.00017782,2]
[373433875,1753008632554,-466.02746435,0.00017782,2]
[373433877,1753008632563,-460.0,0.00017782,2]
[373433879,1753008632572,-460.0,0.00017782,2]
[373433881,1753008632582,-500.0,0.00017782,2]
[373433882,1753008632592,-500.0,0.00017782,2]
[373433885,1753008632601,-500.0,0.00017782,2]
[373433886,1753008632611,-460.0,0.00017782,2]
[373433888,1753008632620,-460.0,0.00017782,2]
[373433890,1753008632629,-460.0,0.00017782,2]
[373433892,1753008632638,-460.0,0.00017782,2]
[373433894,1753008632647,-460.0,0.00017782,2]
[373433895,1753008632658,-460.0,0.00017782,2]
[373433896,1753008632668,-460.0,0.00017782,2]
[373433897,1753008632681,-187.93530316,0.00017782,2]
[373433898,1753008632690,-460.0,0.00017782,2]
[373433899,1753008632700,-460.0,0.00017782,2]
[373433900,1753008632709,-469.92225315,0.00017782,2]
[373433901,1753008632719,-460.0,0.00017782,2]
[373433902,1753008632728,-553.48507504,0.00017782,2]
[373433903,1753008632737,-460.0,0.00017782,2]
[373433904,1753008632746,-460.0,0.00017782,2]
[373433906,1753008632756,-460.0,0.00017782,2]
[373433908,1753008632765,-460.0,0.00017782,2]
[373433910,1753008632774,-1404.59,0.00017782,2]
[373433912,1753008632783,-460.0,0.00017782,2]
[373433914,1753008632792,-460.0,0.00017782,2]
[373433916,1753008632801,-460.0,0.00017782,2]
[373433918,1753008632810,-460.0,0.00017782,2]
[373433919,1753008632820,-460.0,0.00017782,2]
[373433920,1753008632828,-460.0,0.00017782,2]
[373433921,1753008632839,-460.0,0.00017782,2]
[373433922,1753008632847,-401.49,0.00017782,2]
[373433923,1753008632856,-460.0,0.00017782,2]
[373433924,1753008632865,-460.0,0.00017782,2]
[373433925,1753008632874,-460.0,0.00017783,2]
[373433926,1753008632883,-460.0,0.00017783,2]
[373433927,1753008632892,-460.0,0.00017783,2]
[373433928,1753008632901,-460.0,0.00017783,2]
[373433929,1753008632909,-512.51,0.00017783,2]
[373433930,1753008632919,-460.0,0.00017783,2]
[373433931,1753008632928,-460.0,0.00017783,2]
[373433932,1753008632936,-264.42099857,0.00017783,2]
[373433933,1753008632945,-460.0,0.00017783,2]
[373433934,1753008632954,-540.52492912,0.00017783,2]
[373433935,1753008632963,-460.0,0.00017783,2]
[373433936,1753008632973,-460.0,0.00017783,2]
[373433937,1753008632982,-460.0,0.00017783,2]
[373433938,1753008632991,-509.52806293,0.00017783,2]
[373433939,1753008633000,-460.0,0.00017784,2]
[373433940,1753008633009,-460.0,0.00017784,2]
[373433941,1753008633019,-460.0,0.00017784,2]
[373433942,1753008633028,-460.0,0.00017784,2]
[373433943,1753008633038,-985.58,0.00017784,2]
[373433945,1753008633047,-4921.44925637,0.000179,2]
[373433946,1753008633057,-460.0,0.00017957,2]
[373433947,1753008633066,-461.32,0.00017957,2]
[373433948,1753008633076,-234.11705172,0.00017957,2]
[373433950,1753008633085,-6396.0,0.00018,5]
[373433951,1753008633096,-460.0,0.00018054,2]
[373433952,1753008633105,-460.0,0.00018054,2]
[373433953,1753008633115,-460.0,0.00018054,2]
[373433954,1753008633124,-154.11700291,0.00018054,2]
[373433955,1753008633134,-313.88966242,0.00018054,2]
[373433956,1753008633143,-460.0,0.00018054,2]
[373433957,1753008633160,-460.0,0.00018054,2]
[373433958,1753008633170,-460.0,0.00018054,2]
[373433959,1753008633180,-3132.393223,0.00018054,2]
[373433960,1753008633274,-1013.116777,0.00018054,2]
[373433961,1753008633284,-460.0,0.00018054,2]
[373433962,1753008633294,-578.2664526,0.00018055,2]
[373433963,1753008633305,-229.3235474,0.00018055,2]
[373433964,1753008633314,-460.0,0.00018055,2]
[373433965,1753008633324,-460.0,0.00018055,2]
[373433966,1753008633334,-569.86,0.00018055,2]
[373433967,1753008633344,-58.58464754,0.00018055,2]
[373433968,1753008633356,-401.41535246,0.00018055,2]
[373433969,1753008633365,-73.36329274,0.00018055,2]
[373433989,1753008638118,-714.94,0.00017782,2]
[373433991,1753008638127,-386.63670726,0.00018055,2]
[373433993,1753008638137,-174.90829277,0.00018055,2]
[373433996,1753008638149,-285.09170723,0.00018055,2]
[373433998,1753008638158,-460.0,0.00018055,2]
[373434000,1753008638167,-404.26829277,0.00018055,2]
[373434015,1753008638299,-55.73170723,0.00018055,2]
[373434018,1753008638314,-460.0,0.00018056,2]
[373434020,1753008638323,-460.0,0.00018056,2]
[373434022,1753008638333,-591.42,0.00018056,2]
[373434024,1753008638342,-500.0,0.00018056,2]
[373434026,1753008638351,-460.0,0.00018056,2]
[373434028,1753008638361,-460.0,0.00018056,2]
[373434030,1753008638370,-460.0,0.00018056,2]
[373434032,1753008638379,-460.0,0.00018056,2]
[373434034,1753008638388,-460.0,0.00018056,2]
[373434035,1753008638398,-460.0,0.00018056,2]
[373434036,1753008638407,-52.59330862,0.00018056,2]
[373434037,1753008638419,-407.40669138,0.00018056,2]
[373434039,1753008638428,-460.0,0.00018056,2]
[373434040,1753008638437,-460.0,0.00018056,2]
[373434041,1753008638446,-460.0,0.00018056,2]
[373434042,1753008638455,-1404.59,0.00018056,2]
[373434043,1753008638465,-460.0,0.00018056,2]
[373434044,1753008638474,-460.0,0.00018056,2]
[373434045,1753008638484,-388.33954498,0.00018056,2]
[373434046,1753008638493,-460.0,0.00018056,2]
[373434047,1753008638503,-460.0,0.00018056,2]
[373434048,1753008638512,-460.0,0.00018056,2]
[373434049,1753008638521,-460.0,0.00018056,2]
[373434050,1753008638530,-460.0,0.00018056,2]
[373434051,1753008638540,-460.0,0.00018057,2]
[373434052,1753008638549,-60.35630964,0.00018057,2]
[373434053,1753008638561,-399.64369036,0.00018057,2]
[373434054,1753008638570,-460.0,0.00018057,2]
[373434055,1753008638579,-379.10096571,0.00018057,2]
[373434056,1753008638591,-80.89903429,0.00018057,2]
[373434057,1753008638600,-460.0,0.00018057,2]
[373434058,1753008638609,-460.0,0.00018058,2]
[373434059,1753008638618,-460.0,0.00018058,2]
[373434060,1753008638627,-985.58,0.00018058,2]
[373434061,1753008638636,-4921.44925609,0.00018176,2]
[373434062,1753008638646,-461.32,0.00018231,2]
[373434063,1753008638657,-460.0,0.00018328,2]
[373434064,1753008638666,-460.0,0.00018328,2]
[373434065,1753008638678,-460.0,0.00018328,2]
[373434066,1753008638687,-460.0,0.00018328,2]
[373434067,1753008638697,-4145.51,0.00018328,2]
[373434068,1753008638707,-460.0,0.00018328,2]
[373434069,1753008638716,-807.59,0.00018329,2]
[373434070,1753008638727,-460.0,0.00018329,2]
[373434071,1753008638736,-569.86,0.00018329,2]
[373434072,1753008638747,-460.0,0.00018329,2]
[373434073,1753008638757,-342.07541902,0.00018329,2]
[373434074,1753008638768,-237.51097578,0.00018329,2]
[373434075,1753008638777,-460.0,0.0001833,2]
[373434076,1753008638787,-500.0,0.0001833,2]
[373434077,1753008638796,-460.0,0.0001833,2]
[373434078,1753008638805,-460.0,0.0001833,2]
[373434079,1753008638814,-460.0,0.0001833,2]
[373434080,1753008638823,-1404.59,0.0001833,2]
[373434081,1753008638832,-460.0,0.0001833,2]
[373434082,1753008638843,-460.0,0.0001833,2]
[373434083,1753008638852,-460.0,0.0001833,2]
[373434084,1753008638861,-460.0,0.0001833,2]
[373434085,1753008638870,-460.0,0.00018332,2]
[373434086,1753008638880,-985.58,0.00018332,2]
[373434087,1753008638889,-201.41190661,0.0001844,2]
[373434088,1753008638898,-4921.44925609,0.00018452,2]
[373434089,1753008638907,-500.0,0.00018483,2]
[373434090,1753008638916,-366.08896631,0.00018505,2]
[373434091,1753008638928,-95.23103369,0.00018505,2]
[373434092,1753008638937,-460.0,0.00018602,2]
[373434093,1753008638947,-4145.51,0.00018602,2]
[373434094,1753008638957,-460.0,0.00018602,2]
[373434095,1753008638966,-807.59,0.00018603,2]
[373434096,1753008638976,-460.0,0.00018603,2]
[373434097,1753008638985,-395.22525782,0.00018603,2]
[373434098,1753008639000,-174.63474218,0.00018603,2]
[373434099,1753008639010,-460.0,0.00018603,2]
[373434100,1753008639019,-460.0,0.00018604,2]
[373434101,1753008639028,-460.0,0.00018604,2]
[373434102,1753008639038,-460.0,0.00018604,2]
[373434103,1753008639048,-460.0,0.00018604,2]
[373434104,1753008639058,-1404.59,0.00018604,2]
[373434105,1753008639066,-460.0,0.00018604,2]
[373434106,1753008639075,-460.0,0.00018604,2]
[373434107,1753008639084,-460.0,0.00018604,2]
[373434108,1753008639094,-460.0,0.00018606,2]
[373434109,1753008639103,-985.58,0.00018606,2]
[373434110,1753008639113,-502.98193217,0.00018632,2]
[373434111,1753008639122,-4921.44925609,0.00018728,2]
[373434112,1753008639131,-461.32,0.00018779,2]
[373434113,1753008639141,-487.72683626,0.00018819,2]
[373434114,1753008639150,-460.0,0.00018876,2]
[373434115,1753008639160,-4145.51,0.00018876,2]
[373434116,1753008639169,-460.0,0.00018876,2]
[373434117,1753008639178,-807.59,0.00018877,2]
[373434118,1753008639188,-460.0,0.00018877,2]
[373434119,1753008639197,-569.86,0.00018877,2]
[373434120,1753008639206,-460.0,0.00018877,2]
[373434121,1753008639215,-460.0,0.00018878,2]
[373434122,1753008639225,-1404.59,0.00018878,2]
[373434123,1753008639234,-460.0,0.00018878,2]
[373434124,1753008639244,-534.17752029,0.00018878,2]
[373434125,1753008639254,-460.0,0.00018878,2]
[373434126,1753008639262,-460.0,0.0001888,2]
[373434127,1753008639271,-985.58,0.0001888,2]
[373434128,1753008639280,-1408.46444132,0.000189,2]
[373434129,1753008639289,-763.53356264,0.00018959,2]
[373434130,1753008639298,-4921.44925609,0.00019003,2]
[373434131,1753008639307,-461.32,0.00019053,2]
[373434132,1753008639316,-500.0,0.00019073,2]
[373434133,1753008639325,-500.0,0.00019088,2]
[373434134,1753008639334,-460.0,0.00019089,2]
[373434135,1753008639343,-460.0,0.00019089,2]
[373434136,1753008639352,-620.65,0.00019089,2]
[373434137,1753008639361,-460.0,0.00019089,2]
[373434138,1753008639370,-920.74,0.00019089,2]
[373434139,1753008639378,-493.94,0.00019143,3]
[373434140,1753008639387,-987.88,0.00019144,3]
[373434141,1753008639396,-4145.51,0.0001915,2]
[373434142,1753008639405,-460.0,0.0001915,2]
[373434143,1753008639414,-807.59,0.00019151,2]
[373434144,1753008639423,-460.0,0.00019151,2]
[373434145,1753008639433,-569.86,0.00019151,2]
[373434146,1753008639442,-460.0,0.00019151,2]
[373434147,1753008639451,-1404.59,0.00019152,2]
[373434148,1753008639462,-460.0,0.00019152,2]
[373434149,1753008639472,-460.0,0.00019154,2]
[373434150,1753008639481,-397.54049832,0.00019154,2]
[373434151,1753008639494,-588.03950168,0.00019154,2]
[373434152,1753008639503,-5000.0,0.00019178,2]
[373434153,1753008639512,-158.658992,0.00019178,2]
[373434154,1753008639522,-666.0,0.00019178,2]
[373434155,1753008639532,-160.0,0.0001919,2]
[373434156,1753008639541,-160.0,0.0001919,2]
[373434157,1753008639550,-230.98123516,0.0001919,2]
[373434158,1753008639559,-160.0,0.0001919,2]
[373434159,1753008639569,-215.71456056,0.0001919,2]
[373434160,1753008639579,-160.0,0.0001919,2]
[373434161,1753008639588,-525.91036056,0.0001919,2]
[373434162,1753008639598,-476.42619115,0.0001919,2]
[373434163,1753008639607,-160.0,0.0001919,2]
[373434164,1753008639616,-12615.16111038,0.0001919,2]
[373434165,1753008639625,-839.59621281,0.0001919,2]
[373434166,1753008639635,-214.5637056,0.0001919,2]
[373434167,1753008639644,-160.0,0.0001919,2]
[373434168,1753008639656,-4921.44925609,0.00019279,2]
[373434169,1753008639675,-210.0,0.00019299,2]
[373434170,1753008639684,-461.32,0.00019327,2]
[373434171,1753008639693,-30257.81230337,0.00019329,2]
[373434172,1753008639703,-160.0,0.00019347,2]
[373434173,1753008639713,-460.0,0.00019363,2]
[373434174,1753008639722,-460.0,0.00019363,2]
[373434175,1753008639731,-620.65,0.00019363,2]
[373434176,1753008639742,-460.0,0.00019363,2]
[373434177,1753008639751,-920.74,0.00019363,2]
[373434178,1753008639761,-500.0,0.00019382,2]
[373434179,1753008639770,-4145.51,0.00019424,2]
[373434180,1753008639779,-460.0,0.00019424,2]
[373434181,1753008639788,-807.59,0.00019425,2]
[373434182,1753008639797,-460.0,0.00019425,2]
[373434183,1753008639807,-569.86,0.00019425,2]
[373434184,1753008639815,-460.0,0.00019425,2]
[373434185,1753008639825,-1404.59,0.00019426,2]
[373434186,1753008639834,-460.0,0.00019426,2]
[373434187,1753008639843,-460.0,0.00019428,2]
[373434189,1753008639853,-985.58,0.00019428,2]
[373434191,1753008639862,-4921.44925609,0.00019555,2]
[373434192,1753008639871,-461.32,0.00019601,2]
[373434193,1753008639881,-460.0,0.00019637,2]
[373434194,1753008639890,-460.0,0.00019637,2]
[373434195,1753008639900,-620.65,0.00019637,2]
[373434196,1753008639909,-920.74,0.00019637,2]
[373434197,1753008639918,-4145.51,0.00019698,2]
[373434198,1753008639927,-460.0,0.00019698,2]
[373434199,1753008639937,-807.59,0.00019699,2]
[373434200,1753008639946,-446.69322287,0.00019699,2]
[373434201,1753008639956,-569.86,0.00019699,2]
[373434202,1753008639965,-460.0,0.00019699,2]
[373434203,1753008639974,-1404.59,0.000197,2]
[373434204,1753008639983,-589.41,0.000197,2]
[373434205,1753008639992,-460.0,0.00019702,2]
[373434206,1753008640001,-985.58,0.00019702,2]
[373434207,1753008640010,-21793.01233875,0.00019811,2]
[373434208,1753008640019,-4921.44925609,0.00019831,2]
[373434209,1753008640028,-500.0,0.00019864,2]
[373434210,1753008640037,-461.32,0.00019875,2]
[373434211,1753008640046,-260.0,0.00019895,2]
[373434212,1753008640055,-282.81,0.00019911,2]
[373434213,1753008640065,-460.0,0.00019911,2]
[373434214,1753008640074,-620.65,0.00019911,2]
[373434215,1753008640083,-920.74,0.00019911,2]
[373434216,1753008640092,-4145.51,0.00019972,2]
[373434217,1753008640102,-460.0,0.00019972,2]
[373434218,1753008640111,-807.59,0.00019973,2]
[373434219,1753008640119,-569.86,0.00019973,2]
[373434220,1753008640128,-460.0,0.00019973,2]
[373434221,1753008640137,-1404.59,0.00019974,2]
[373434222,1753008640146,-221.5,0.00019976,2]
[373434223,1753008640155,-985.58,0.00019976,2]
[373434224,1753008640164,-4921.44925609,0.00020107,2]
[373434225,1753008640173,-461.32,0.00020149,2]
[373434226,1753008640182,-460.0,0.00020185,2]
[373434227,1753008640191,-620.65,0.00020185,2]
[373434228,1753008640201,-920.74,0.00020185,2]
[373434229,1753008640210,-1000.0,0.00020199,2]
[373434230,1753008640219,-1000.0,0.00020226,2]
[373434231,1753008640228,-763.53356264,0.00020234,2]
[373434232,1753008640236,-500.0,0.00020246,2]
[373434233,1753008640245,-4145.51,0.00020246,2]
[373434234,1753008640254,-460.0,0.00020246,2]
[373434235,1753008640263,-807.59,0.00020247,2]
[373434236,1753008640271,-569.86,0.00020247,2]
[373434237,1753008640280,-460.0,0.00020247,2]
[373434238,1753008640289,-1404.59,0.00020248,2]
[373434239,1753008640298,-985.58,0.0002025,2]
[373434240,1753008640307,-2000.0,0.00020298,2]
[373434241,1753008640315,-215.73715127,0.00020329,3]
[373434242,1753008640325,-4921.44925609,0.00020383,3]
[373434243,1753008640333,-2000.0,0.00020386,2]
[373434244,1753008640342,-2000.0,0.00020421,2]
[373434245,1753008640353,-461.32,0.00020423,2]
[373434246,1753008640362,-360.0,0.00020443,2]
[373434247,1753008640371,-460.0,0.00020459,2]
[373434248,1753008640381,-620.65,0.00020459,2]
[373434249,1753008640390,-920.74,0.00020459,2]
[373434250,1753008640400,-153.0,0.00020466,2]
[373434251,1753008640409,-153.0,0.00020466,2]
[373434252,1753008640418,-153.0,0.00020466,2]
[373434253,1753008640427,-153.0,0.00020466,2]
[373434254,1753008640436,-159.8396335,0.00020466,2]
[373434255,1753008640446,-177.1379916,0.00020466,2]
[373434256,1753008640455,-153.0,0.00020466,2]
[373434257,1753008640465,-577.2483964,0.00020466,2]
[373434258,1753008640474,-3722.73,0.00020488,2]
[373434259,1753008640484,-4145.51,0.0002052,2]
[373434260,1753008640494,-368.98,0.0002052,2]
[373434262,1753008640504,-807.59,0.00020521,2]
[373434264,1753008640513,-569.86,0.00020521,2]
[373434266,1753008640522,-460.0,0.00020521,2]
[373434267,1753008640532,-1404.59,0.00020522,2]
[373434268,1753008640541,-1000.0,0.00020526,2]
[373434269,1753008640551,-4921.44925609,0.00020659,3]
[373434270,1753008640561,-214.5637056,0.0002066,3]
[373434271,1753008640570,-461.32,0.00020697,2]
[373434272,1753008640579,-500.0,0.00020717,2]
[373434273,1753008640588,-12615.16111038,0.00020728,3]
[373434274,1753008640599,-160.0,0.00020728,3]
[373434275,1753008640609,-476.42619115,0.00020728,3]
[373434276,1753008640618,-514.1,0.00020733,2]
[373434277,1753008640628,-620.65,0.00020733,2]
[373434278,1753008640637,-920.74,0.00020733,2]
[373434279,1753008640646,-500.0,0.00020739,2]
[373434280,1753008640656,-151.0,0.0002074,2]
[373434281,1753008640666,-151.0,0.0002074,2]
[373434282,1753008640675,-151.0,0.0002074,2]
[373434283,1753008640688,-151.0,0.0002074,2]
[373434284,1753008640697,-574.634818,0.0002074,2]
[373434285,1753008640707,-574.634818,0.0002074,2]
[373434286,1753008640716,-152.95453,0.0002074,2]
[373434287,1753008640726,-152.95453,0.0002074,2]
[373434288,1753008640735,-151.0,0.0002074,2]
[373434289,1753008640745,-151.0,0.0002074,2]
[373434290,1753008640755,-4145.51,0.00020794,2]
[373434291,1753008640764,-807.59,0.00020795,2]
[373434292,1753008640773,-569.86,0.00020795,2]
[373434293,1753008640782,-460.0,0.00020795,2]
[373434294,1753008640791,-1404.59,0.00020796,2]
[373434295,1753008640800,-712.4,0.00020806,2]
[373434296,1753008640810,-4921.44925609,0.00020934,4]
[373434297,1753008640819,-151.0,0.0002096,2]